Cogmind - Beta 13 @@@ ROGUE MODE // 2024.03.25 @ 04:30:12 // Winter2019/RPGLIKE Player: 3.2.1.HEAT DEATH Result: Core destroyed Performance ------------- Evolutions (3) 1500 Regions Visited (7) 1400 Robots Destroyed (30) 150 Value Destroyed (491) 491 Prototype IDs (24) 480 Alien Tech Used (0) 0 Bonus (87) 87 TOTAL SCORE: 4108 Bonus ------- Entered Garrisons 200 Friendly Fire -113 Cogmind --------- Core Integrity 0/600 Matter 234/300 Energy 420/550 System Corruption 0% Temperature Critical (962) Movement Rolling (155) Ox5 Location -7/Garrison Parts ------- > --- POWER (3) -------- Ion Engine Ion Engine Ion Engine > --- PROPULSION (1) --- Wheel > --- UTILITY (2) ------ Heavy Armor Plating > --- WEAPON (5) ------- Advanced Beam Cannon Advanced Beam Cannon Advanced Beam Cannon YOLO Cannon > --- INVENTORY (0) ---- (None) Peak State ------------ > --- POWER ------------ Ion Engine Ion Engine Ion Engine > --- PROPULSION ------- Wheel > --- UTILITY ---------- Heavy Armor Plating > --- WEAPON ----------- Advanced Beam Cannon Advanced Beam Cannon Advanced Beam Cannon YOLO Cannon > --- INVENTORY -------- (None) [Rating: 39] Favorites ----------- Power Light Ion Engine Engine Light Ion Engine Propulsion Wheel Wheel Wheel Utility Utility Shielding Device Improved Terrain Scanner Protection Utility Shielding Weapon Medium Laser Energy Gun Medium Laser Energy Cannon Advanced Beam Cannon Special Weapon Welding Torch Build | -11 -10 -10 -10 -9 -8 -7 -7 ------- Run | Yrd Mat Min Exi Min Mat Fac Gar Slots Evolved 7 | 4 . . . 1 2 . . Power 2 | 1 . . . 1 . . . Propulsion . | . . . . . . . . Utility 1 | . . . . . 1 . . Weapon 4 | 3 . . . . 1 . . Parts Attached 29 | 8 4 5 1 3 8 . . Power 9 | 2 . 2 . 2 3 . . Engine 9 | 2 . 2 . 2 3 . . Core . | . . . . . . . . Reactor . | . . . . . . . . Propulsion 3 | 1 . 1 . . 1 . . Treads . | . . . . . . . . Leg . | . . . . . . . . Wheel 3 | 1 . 1 . . 1 . . Hover . | . . . . . . . . Flight . | . . . . . . . . Utility 4 | 1 1 . . 1 1 . . Device 1 | 1 . . . . . . . Storage . | . . . . . . . . Processor . | . . . . . . . . Hackware . | . . . . . . . . Protection 3 | . 1 . . 1 1 . . Artifact . | . . . . . . . . Weapon 13 | 4 3 2 1 . 3 . . Energy Gun 3 | 2 . 1 . . . . . Energy Cannon 4 | . . . 1 . 3 . . Ballistic Gun . | . . . . . . . . Ballistic Cannon . | . . . . . . . . Launcher . | . . . . . . . . Special Weapon 6 | 2 3 1 . . . . . Impact Weapon . | . . . . . . . . Slashing Weapon . | . . . . . . . . Piercing Weapon . | . . . . . . . . Special Melee Weapon . | . . . . . . . . Unidentified Prototypes 1 | . . . . . 1 . . Parts Lost 2 | . . 1 . . 1 . . Power . | . . . . . . . . Propulsion 1 | . . 1 . . . . . Utility . | . . . . . . . . Weapon 1 | . . . . . 1 . . Highest Loss Streak 1 | . . 1 . . 1 . . To Critical Strikes . | . . . . . . . . Average Slot Usage (%) 90 | . 100 92 93 87 83 81 81 Engine 26 | . 25 25 25 32 29 27 27 Wheel 9 | . 12 4 12 11 9 9 9 Protection 10 | . 6 12 12 11 9 9 9 Energy Gun 10 | . 18 12 12 11 2 . . Energy Cannon 10 | . . . 5 11 29 36 36 Special Weapon 21 | . 31 37 24 11 2 . . Naked Turns . | . . . . . . . . Heaviest Build 60 | 15 15 14 28 37 60 60 60 Greatest Support 16 | 16 3 10 10 10 10 10 10 Greatest Overweight (x) 5 | 4 4 4 2 3 5 5 5 Average Overweight (x) 2 | . 4 1 1 2 4 5 5 Largest Inventory Capacity . | . . . . . . . . Average Capacity . | . . . . . . . . Most Carried . | . . . . . . . . Average Carried . | . . . . . . . . Final Capacity . | . . . . . . . . Final Carried . | . . . . . . . . Class Distribution -------------------- 35% | Gunner 31% | Pyromaniac-Gunner 24% | Mutant 7% | Scavenger-Gunner Dominant Class ---------------- Gunner | -10/Materials Gunner | -10/Mines Pyromaniac-Gunner | -10/Exiles Pyromaniac-Gunner | -9/Mines Pyromaniac-Gunner | -8/Materials Pyromaniac-Gunner | -7/Factory Pyromaniac-Gunner | -7/Garrison Resources | -11 -10 -10 -10 -9 -8 -7 -7 ----------- Run | Yrd Mat Min Exi Min Mat Fac Gar Matter Collected 659 | 329 . 200 4 36 90 . . Remotely . | . . . . . . . . Salvage Created 879 | 283 . 68 42 89 114 . 283 Parts 61 | 28 . 11 1 14 2 . 5 Haulers Intercepted 1 | . . . . . 1 . . Recyclers Shooed 4 | 1 1 2 . . . . . Parts Field Recycled . | . . . . . . . . Retrieved Matter . | . . . . . . . . Parts Self-Destructed . | . . . . . . . . Prevented . | . . . . . . . . Kills | -11 -10 -10 -10 -9 -8 -7 -7 ------- Run | Yrd Mat Min Exi Min Mat Fac Gar Combat Hostiles Destroyed 11 | . . 4 . 2 1 . 4 Guns 1 | . . 1 . . . . . Cannons 6 | . . 3 . 1 . . 2 AOE 3 | . . . . 1 1 . 1 Classes Destroyed 9 | 3 . 2 . 2 2 . . Worker 5 | 2 . . . 3 . . . Builder 1 | . . 1 . . . . . Tunneler 10 | 8 . 1 . 1 . . . Hauler 1 | . . . . . 1 . . Recycler 1 | 1 . . . . . . . Swarmer 4 | . . 4 . . . . . Grunt 3 | . . . . 1 . . 2 Sentry 3 | . . . . . 1 . 2 Demolisher 2 | . . . . 2 . . . Best Kill Streak 4 | 4 . 2 . 4 1 . 4 Combat Bots Only 4 | . . 2 . 2 1 . 4 Max Kills in Single Turn 3 | 1 . 1 . 3 1 . 2 Gunslinging . | . . . . . . . . Exploded 1 | . . . . 1 1 . 1 Melee . | . . . . . . . . Uniques/NPCs Destroyed . | . . . . . . . . Combat | -11 -10 -10 -10 -9 -8 -7 -7 -------- Run | Yrd Mat Min Exi Min Mat Fac Gar Hostile Shots Fired 80 | . . 47 . 2 4 . 27 Missed 29 | . . 18 . . 2 . 9 Damage Taken 933 | . 3 235 . 130 27 . 538 Core 783 | . 2 183 . 107 15 . 476 Absorbed by Shields . | . . . . . . . . Redirected to Core 301 | . 2 154 . 50 15 . 80 Core Remaining (%) 82 | 100 . . . 74 72 . . Volleys Fired 121 | 74 5 18 4 10 4 . 6 Largest 4 | 2 3 4 4 2 3 . 4 Hottest 304 | 150 60 190 190 150 236 . 304 Shots Fired 231 | 112 15 45 14 16 10 . 19 Gun 126 | 101 . 12 4 9 . . . Cannon 31 | . . . 1 1 10 . 19 Launcher . | . . . . . . . . Special 74 | 11 15 33 9 6 . . . Kinetic . | . . . . . . . . Thermal 231 | 112 15 45 14 16 10 . 19 Explosive . | . . . . . . . . Electromagnetic . | . . . . . . . . Robot Hit Streak 23 | 23 4 4 6 3 4 . 5 Robot Miss Streak 6 | 3 2 3 2 4 . . 6 Penetration Max . | . . . . . . . . Secondary Targets . | . . . . . . . . Shots Hit Robots 84 | 29 9 22 6 8 4 . 6 Core Hits 46 | 12 3 13 5 8 2 . 3 Critical Kills . | . . . . . . . . Critical Parts Destroyed . | . . . . . . . . Critical Strikes 8 | 4 . 1 . 3 . . . Burn 8 | 4 . 1 . 3 . . . Melee Attacks . | . . . . . . . . Impact . | . . . . . . . . Slashing . | . . . . . . . . Piercing . | . . . . . . . . Sneak Attacks . | . . . . . . . . Combat Hostiles . | . . . . . . . . Follow-up Attacks . | . . . . . . . . Damage Inflicted 2110 | 399 35 180 455 385 220 . 436 Guns 563 | 375 . 89 25 74 . . . Cannons 648 | . . . 108 97 139 . 304 Explosions 621 | . . . 266 142 81 . 132 Melee . | . . . . . . . . Ramming 6 | . 6 . . . . . . Kinetic . | . . . . . . . . Thermal 2104 | 399 29 180 455 385 220 . 436 Explosive . | . . . . . . . . Electromagnetic . | . . . . . . . . Impact . | . . . . . . . . Slashing . | . . . . . . . . Piercing . | . . . . . . . . Highest Corruption . | . . . . . . . . Average Corruption . | . . . . . . . . Corruption Purged . | . . . . . . . . Corruption Blocked . | . . . . . . . . Overload Shots . | . . . . . . . . Overflow Damage 29 | . . . 29 . . . . Projectiles . | . . . . . . . . Explosions 29 | . . . 29 . . . . Melee . | . . . . . . . . Knockbacks . | . . . . . . . . Impact . | . . . . . . . . Kinetic . | . . . . . . . . Secondary . | . . . . . . . . Self-Inflicted Damage 60 | . 3 . . 57 . . . Shots 1 | . . . . 1 . . . Rammed 1 | . 1 . . . . . . Targets Rammed 1 | . 1 . . . . . . Kicked . | . . . . . . . . Crushed . | . . . . . . . . Highest Temperature 1027 | 593 . 230 215 220 320 . 1027 Average Temperature 217 | 280 . 105 83 96 144 . 718 Received Heat Transfer 57 | . . . . . 9 . 48 Effects 78 | 44 . . . . 2 . 32 Shutdowns 20 | 10 . . . . . . 10 Energy Bleed 6 | 5 . . . . . . 1 Interference 11 | 5 . . . . 2 . 4 Matter Decay 5 | 4 . . . . . . 1 Short Circuit 7 | 6 . . . . . . 1 Damage (minor) 8 | 4 . . . . . . 4 Damage (major) 17 | 10 . . . . . . 7 Damage (core) 4 | . . . . . . . 4 Siege Activations . | . . . . . . . . Robots Corrupted . | . . . . . . . . Combat Hostiles . | . . . . . . . . Parts Fried . | . . . . . . . . Impact Corruptions . | . . . . . . . . Robots Melted 1 | . . . . . . . 1 Combat Hostiles 1 | . . . . . . . 1 Parts Melted 4 | 3 . . . . . . 1 Heat Transferred 4551 | 1456 225 808 649 674 271 . 468 Parts Sabotaged . | . . . . . . . . Parts Stolen . | . . . . . . . . Parts Stripped . | . . . . . . . . Power Chain Reactions . | . . . . . . . . Alert | -11 -10 -10 -10 -9 -8 -7 -7 ------- Run | Yrd Mat Min Exi Min Mat Fac Gar Peak Influence 145 | 55 50 121 . 77 125 56 145 Initial 56 | . 35 19 . . 29 56 39 Average 49 | 35 38 66 . 11 75 56 75 Maximum Alert Level . | . . . . . . . . Low Security (%) 100 | 100 100 100 . 100 100 100 100 Level 1 . | . . . . . . . . Level 2 . | . . . . . . . . Level 3 . | . . . . . . . . Level 4 . | . . . . . . . . Level 5 . | . . . . . . . . High Security . | . . . . . . . . Max Security . | . . . . . . . . Squads Dispatched . | . . . . . . . . Investigation . | . . . . . . . . Extermination . | . . . . . . . . Reinforcement . | . . . . . . . . Assault . | . . . . . . . . Garrison . | . . . . . . . . Intercept . | . . . . . . . . Searches Triggered . | . . . . . . . . Construction Impeded . | . . . . . . . . Haulers Reinforced . | . . . . . . . . Active Scanning Responses . | . . . . . . . . Cargo Convoy Interrupts . | . . . . . . . . Stealth | -11 -10 -10 -10 -9 -8 -7 -7 --------- Run | Yrd Mat Min Exi Min Mat Fac Gar Distress Signals 1 | . . . . . 1 . . Communications Jammed . | . . . . . . . . Distress Signals . | . . . . . . . . Times Spotted 19 | . 1 6 . 2 7 . 3 Peak Tracking Total 3 | . 1 3 . 2 3 . 3 Tactical Retreats . | . . . . . . . . Traps | -11 -10 -10 -10 -9 -8 -7 -7 ------- Run | Yrd Mat Min Exi Min Mat Fac Gar Traps Triggered . | . . . . . . . . Indirectly . | . . . . . . . . Trap Hack Attempts . | . . . . . . . . Triggered . | . . . . . . . . Disarmed . | . . . . . . . . Reprogrammed . | . . . . . . . . Reused . | . . . . . . . . Traps Extracted . | . . . . . . . . Installed . | . . . . . . . . Triggered . | . . . . . . . . Machines | -11 -10 -10 -10 -9 -8 -7 -7 ---------- Run | Yrd Mat Min Exi Min Mat Fac Gar Machines Disabled 2 | . . . 1 . 1 . . Max in Single Turn 1 | . . . 1 . 1 . . Machines Repaired . | . . . . . . . . Machines Dismantled . | . . . . . . . . Machines Sabotaged . | . . . . . . . . Overloaded Fab Kills . | . . . . . . . . Hacking | -11 -10 -10 -10 -9 -8 -7 -7 --------- Run | Yrd Mat Min Exi Min Mat Fac Gar Machines Accessed 4 | . . . 2 . 1 1 . Terminals . | . . . . . . . . Fabricators . | . . . . . . . . Repair Stations . | . . . . . . . . Recycling Units 1 | . . . . . 1 . . Scanalyzers . | . . . . . . . . Garrison Access 1 | . . . . . . 1 . Total Hacks 7 | . . . 5 . 1 1 . Successful 7 | . . . 5 . 1 1 . Failed . | . . . . . . . . Catastrophic . | . . . . . . . . Database Lockouts . | . . . . . . . . Manual 1 | . . . 1 . . . . Terminals . | . . . . . . . . Fabricators . | . . . . . . . . Repair Stations . | . . . . . . . . Recycling Units 1 | . . . . . 1 . . Scanalyzers . | . . . . . . . . Garrison Access 1 | . . . . . . 1 . Terminal Hacks 5 | . . . 5 . . . . Record 4 | . . . 4 . . . . Derelict Proto ID Bank 1 | . . . 1 . . . . Fabricator Hacks . | . . . . . . . . Repair Station Hacks . | . . . . . . . . Recycling Unit Hacks 1 | . . . . . 1 . . Report Inventory 1 | . . . . . 1 . . Scanalyzer . | . . . . . . . . Garrison Access Hacks 1 | . . . . . . 1 . Unlock Access 1 | . . . . . . 1 . Unauthorized Hacks . | . . . . . . . . Terminals . | . . . . . . . . Fabricators . | . . . . . . . . Repair Stations . | . . . . . . . . Recycling Units . | . . . . . . . . Scanalyzers . | . . . . . . . . Garrison Access . | . . . . . . . . Data Cores Recovered . | . . . . . . . . Used . | . . . . . . . . Hacking Detections . | . . . . . . . . Full Trace Events . | . . . . . . . . Feedback Events . | . . . . . . . . Feedback Blocked . | . . . . . . . . Robot Schematics Acquired . | . . . . . . . . Robots Built . | . . . . . . . . Authchips . | . . . . . . . . Time . | . . . . . . . . Total Robot Build Rating . | . . . . . . . . Part Schematics Acquired . | . . . . . . . . Parts Built . | . . . . . . . . Authchips . | . . . . . . . . Time . | . . . . . . . . Total Part Build Rating . | . . . . . . . . Parts Repaired . | . . . . . . . . Time . | . . . . . . . . Parts Recycled . | . . . . . . . . Recycled Matter . | . . . . . . . . Retrieved Matter . | . . . . . . . . Retrieved Components . | . . . . . . . . Parts Scanalyzed . | . . . . . . . . Part Schematics Acquired . | . . . . . . . . Parts Damaged . | . . . . . . . . Bothacking | -11 -10 -10 -10 -9 -8 -7 -7 ------------ Run | Yrd Mat Min Exi Min Mat Fac Gar Used RIF Installer . | . . . . . . . . Robots Hacked . | . . . . . . . . Non-combat . | . . . . . . . . Combat . | . . . . . . . . Robot Hacks Applied . | . . . . . . . . Relay Couplers Released . | . . . . . . . . Fabnet Peak Effective % . | . . . . . . . . Robots Rewired 1 | . . . 1 . . . . Allies Hacked . | . . . . . . . . Hacks Repelled . | . . . . . . . . Allies | -11 -10 -10 -10 -9 -8 -7 -7 -------- Run | Yrd Mat Min Exi Min Mat Fac Gar Total Allies 2 | . . . 1 . . . 1 Largest Group 1 | . . . 1 1 . . 1 Highest-Rated Group 20 | . . . 8 8 . . 20 Highest-Rated Ally 20 | . . . 8 8 . . 20 Total Orders . | . . . . . . . . Ally Attacks 2 | . . . . . . . 2 Total Damage 68 | . . . . . . . 68 Kills . | . . . . . . . . Allies Corrupted . | . . . . . . . . Allies Melted . | . . . . . . . . Intel | -11 -10 -10 -10 -9 -8 -7 -7 ------- Run | Yrd Mat Min Exi Min Mat Fac Gar Robot Analysis Total . | . . . . . . . . Derelict Logs Recovered 1 | . . 1 . . . . . Drone Launches . | . . . . . . . . Drone Recoveries . | . . . . . . . . Exploration | -11 -10 -10 -10 -9 -8 -7 -7 ------------- Run | Yrd Mat Min Exi Min Mat Fac Gar Turns Passed 1802 | 369 219 356 314 193 300 10 41 Spaces Moved 953 | 99 77 190 270 119 181 6 11 Core 197 | 35 77 85 . . . . . Treads . | . . . . . . . . Legs . | . . . . . . . . Wheels 756 | 64 . 105 270 119 181 6 11 Hover . | . . . . . . . . Flight . | . . . . . . . . Fastest Speed 50 | 50 250 95 95 110 125 155 155 Average Speed 136 | 128 250 142 102 123 141 155 155 Slowest Speed 250 | 250 250 250 110 125 155 155 155 Overloaded Moves . | . . . . . . . . Propulsion Burnouts . | . . . . . . . . Robots Hopped . | . . . . . . . . Cave-ins Triggered . | . . . . . . . . Exploration Rate (%) 24 | 5 15 50 63 34 22 1 6 Regions Visited 7 Branch Regions 3 Pre-discovered Areas 2 | . . 1 1 . . . . Known Exits Taken 1 | . . . . . . 1 . Unknown Exits Taken 6 | 1 1 1 1 1 1 . . Scrap Searched 2 | . . 1 . 1 . . . Spaces Dug 1 | 1 . . . . . . . Terrain Destroyed 46 | 2 . 2 9 8 8 . 17 Melee . | . . . . . . . . Projectile 5 | 2 . 2 . 1 . . . AOE 41 | . . . 9 7 8 . 17 Terrain Rammed . | . . . . . . . . Walls Destroyed . | . . . . . . . . Machines Disabled . | . . . . . . . . Actions | -11 -10 -10 -10 -9 -8 -7 -7 --------- Run | Yrd Mat Min Exi Min Mat Fac Gar Total 1184 | 204 90 227 289 135 215 6 18 Wait 48 | 24 . 6 . 2 15 . 1 Move 947 | 98 76 189 269 118 180 6 11 Hop . | . . . . . . . . Pick Up . | . . . . . . . . Fast Attach 19 | 8 2 1 1 2 5 . . Attach . | . . . . . . . . Detach . | . . . . . . . . Swap 11 | . 2 4 . 1 4 . . Drop 19 | . 4 4 2 2 7 . . Fire 121 | 74 5 18 4 10 4 . 6 Melee . | . . . . . . . . Ram 1 | . 1 . . . . . . Kick . | . . . . . . . . Crush . | . . . . . . . . Escape Stasis . | . . . . . . . . Rewire 9 | . . . 9 . . . . Trap . | . . . . . . . . Miscellaneous 9 | . . 5 4 . . . . Route ------- -11/Scrapyard -10/Materials -10/Mines (discovered 2 exits: [*Mat] / *Exi) -10/Exiles (discovered 2 exits: [*Min x2]) -9/Mines -8/Materials -7/Factory -7/Garrison History --------- Turn | Location | Event 1 | -11/Scrapyard | Upgraded with Weapon slot (x3) 18 | -11/Scrapyard | Upgraded with Power slot (x1) 29 | -11/Scrapyard | Discovered new exit (range 15) 370 | -11/Scrapyard | Entered Materials 371 | -10/Materials | Build established: Mutant 575 | -10/Materials | Discovered new exit (range 4) 589 | -10/Materials | Entered Mines 652 | -10/Mines | Found a damaged Exp. Sensor Array with a note attached 672 | -10/Mines | Learned location of Zion (-7) 747 | -10/Mines | Build established: Gunner 924 | -10/Mines | Discovered new exit (range 7) 940 | -10/Mines | Deemed a non-threat by the Exiles lab entrance 941 | -10/Mines | Discovered new exit (range 5) 945 | -10/Mines | Entered Exiles 945 | -10/Exiles | Found Exiles lab destroyed 960 | -10/Exiles | Discovered new exit (range 15) 1097 | -10/Exiles | Opened EX-Vault 1103 | -10/Exiles | Found YOLO Cannon 1250 | -10/Exiles | Discovered new exit (range 10) 1259 | -10/Exiles | Entered Mines 1259 | -9/Mines | Accompanied by 1 ally 1261 | -9/Mines | Reached level 2 1277 | -9/Mines | Upgraded with Power slot (x1) 1437 | -9/Mines | Assembled infested the area 1440 | -9/Mines | Discovered new exit (range 6) 1452 | -9/Mines | Entered Materials 1454 | -8/Materials | Reached level 3 1561 | -8/Materials | Upgraded with Utility slot (x1) 1561 | -8/Materials | Upgraded with Weapon slot (x1) 1738 | -8/Materials | Discovered new exit (range 8) 1752 | -8/Materials | Entered Factory 1754 | -7/Factory | Reached level 4 1762 | -7/Factory | Identified exit to Garrison 1762 | -7/Factory | Entered Garrison 1777 | -7/Garrison | Rescued a captive Derelict 1779 | -7/Garrison | Core integrity fell below 50% 1784 | -7/Garrison | Rescued a captive Derelict 1793 | -7/Garrison | Reached level 5 1798 | -7/Garrison | Core integrity fell below 20% 1802 | -7/Garrison | Build established: Pyromaniac-Gunner 1804 | -7/Garrison | Core destroyed Last Messages --------------- 01792_ Overheating: Hvy. Armor Plating damaged (-172). 01793_ Power failure, Ion Engine shutdown. 01793_ Reached level 5. 01794_ Power failure, Ion Engine shutdown. 01794_ G-47 Trooper destroyed. 01795_ Adv. Beam Cannon broken. 01795_ Overheating: Short circuit. 01796_ Power failure, Ion Engine shutdown. 01796_ Overheating: Ion Engine damaged (-20). 01796_ BY-O0T(b) heat spikes uncontrollably. 01797_ Overheating: Matter decay (-66). 01798_ Overheating: Core damaged (-96). 01800_ Overheating: Broken Adv. Beam Cannon damaged (-55). 01801_ BY-O0T(b) heat damages Great Maul. 01802_ Power failure, Ion Engine shutdown. 01803_ Overheating: Energy bleed (-121). 01804_ Power failure, Ion Engine shutdown. 01804_ Overheating: Core damaged (-96). Map ----- +----------------------------------------------------+ | | | ?????????????????????????????????????? | | ?????????????????????????????????????? | | ?????????????????????????????????????? | | ?????????????????????????????????????? | | ?????????????????????????????????????? | | ?????????????????????????????????????? | | ?????????????????????????????????????? | | ?????????????????????????????????????? | | ?????????????????????????????????????? | | ?????????????????????????????????????? | | ??????????##?????????????????????????? | | ??????????# ?????????????????????????? | | ?????????" ?????????????????????????? | | ?????????? ????????????????????????? | | ?????????? ????????????????????????? | | ??????????# ????????????????????????? | | ?????????## ????????????????????????? | | ????????##; ????????????????????????? | | ????????# ; ????????????????????????? | | ????????# ; ????????????????????????? | | ????????# ; %###?????????????????????? | | ?????????# #?????????????????????? | | ?????????# ###################???? | | ??????##%# = #?? | | ??????# [ %!@ b #?? | | ??????# ;;;;####### #########????? | | ??????# %%; ##?????# #????????????? | | ??????##### ???????#####????????????? | | ??????????# ????????????????????????? | | ??????????# ????????????????????????? | | ??????????# ?????????????????????????? | | ??????????# ?????????????????????????? | | ??????????# ?????????????????????????? | | ??????????# ?????????????????????????? | | ??????????#??????????????????????????? | | ?????????????????????????????????????? | | ?????????????????????????????????????? | | ?????????????????????????????????????? | | ?????????????????????????????????????? | | ?????????????????????????????????????? | | ?????????????????????????????????????? | | ?????????????????????????????????????? | | ?????????????????????????????????????? | | ?????????????????????????????????????? | | ?????????????????????????????????????? | | ?????????????????????????????????????? | | ?????????????????????????????????????? | | ?????????????????????????????????????? | | ?????????????????????????????????????? | +----------------------------------------------------+ Best States ------------- Heat Dissipation 25 Energy Generation 20 Energy Capacity 550 Matter Stores 300 Matter Capacity 300 Sight Range 16 Terrain Scan Range 16 Terrain Scan Density 10 Armor Coverage 600 Utility Shielding 33 Evasion (%) 41 Item Schematics ----------------- None Robot Schematics ------------------ None Fabricated ------------ Nothing Alien Tech Used ----------------- None Achievements -------------- None Challenges ------------ None RPGLIKE | -11 -10 -10 -10 -9 -8 -7 -7 --------- Run | Yrd Mat Min Exi Min Mat Fac Gar Levels Raised 4 | . . . . 1 1 1 1 XP Earned 9225 | 3000 . 1000 200 750 1760 1500 1015 XP Spent 5600 | 2900 . . . 800 1900 . . Upgrades 7 | 4 . . . 1 2 . . Power Slot 2 | 1 . . . 1 . . . Utility Slot 1 | . . . . . 1 . . Weapon Slot 4 | 3 . . . . 1 . . Protomatter Created 64 | . . 28 19 17 . . . Integrity Restored 141 | . . 84 57 . . . . Core 141 | . . 84 57 . . . . Protomatter Decayed 17 | . . 17 . . . . . Game ------ Seed DisposableAccelerationRipper Manual? 0 Play Time 00:11:59 Cumulative 651.4 hours Start 2024.03.25 @ 04:18:59 End 2024.03.25 @ 04:30:12 Sessions 1 Manual Loads 0 Difficulty Rogue Special Mode Winter2019/RPGLIKE Game No. 255 Rogue 231 Adventurer 3 Explorer 21 Win Type - Total 15 Types 10/2/1/1/0/1/0/0/0 Lore% 90 Gallery% 96 Achievement% 83 Wizard Run 0 Options --------- Layout 2 ASCII 0 Keyboard 0 Movement Numpad Keybinds 0 Fullscreen 2 Font 24/Smallcaps Map View 50x44 Zoom Use 0% Tactical HUD 1 Map Filters NONE Filters NONE Steam X RUN: a2f62ac1-6d72-4407-aa1e-447c29666287